Cogmind - Beta 14 @@@ ROGUE MODE // 2025.01.10 @ 23:52:41 Player: erm Result: Self-destructed Performance ------------- Evolutions (1) 500 Regions Visited (3) 600 Robots Destroyed (31) 155 Value Destroyed (577) 577 Prototype IDs (1) 20 Alien Tech Used (0) 0 Bonus (6) 6 TOTAL SCORE: 1858 Bonus ------- High Alert Combat Kills 6 Cogmind --------- Core Integrity 283/400 Matter 300/300 Energy 106/160 System Corruption 0% Temperature Cool (0) Movement Walking (190) Ox1 Location -9/Materials Parts ------- > --- POWER (1) -------- Light Nuclear Core > --- PROPULSION (4) --- Aluminum Leg > --- UTILITY (2) ------ Improved Heat Sink Small Storage Unit > --- WEAPON (2) ------- Heavy EM Shotgun Heavy EM Shotgun > --- INVENTORY (8) ---- Light Deuterium Engine Large Battery (200) Improved Targeting Computer EM Pulse Cannon Grenade Launcher Peak State ------------ > --- POWER ------------ Light Nuclear Core > --- PROPULSION ------- Aluminum Leg Aluminum Leg > --- UTILITY ---------- Improved Heat Sink Small Storage Unit > --- WEAPON ----------- Heavy EM Shotgun Heavy EM Shotgun > --- INVENTORY -------- Light Deuterium Engine Light Nuclear Core Large Battery Improved Targeting Computer EM Pulse Cannon Grenade Launcher [Rating: 18] Favorites ----------- Power Light Nuclear Core Engine Ion Engine Power Core Light Nuclear Core Propulsion Aluminum Leg Leg Aluminum Leg Flight Unit Flight Unit Utility Small Storage Unit Device Improved Heat Sink Storage Small Storage Unit Weapon Medium Laser Energy Gun Medium Laser Energy Cannon EM Pulse Cannon Launcher Grenade Launcher Build | -11 -10 -10 -9 ------- Run | Yrd Mat Min Mat Slots Evolved 2 | . . . 2 Power . | . . . . Propulsion 2 | . . . 2 Utility . | . . . . Weapon . | . . . . Parts Attached 27 | 6 4 4 13 Power 3 | 1 . 1 1 Engine 1 | 1 . . . Core 2 | . . 1 1 Reactor . | . . . . Propulsion 10 | 2 . 2 6 Treads . | . . . . Leg 6 | 2 . 2 2 Wheel . | . . . . Hover . | . . . . Flight 4 | . . . 4 Utility 3 | 1 1 . 1 Device 1 | . . . 1 Storage 2 | 1 1 . . Processor . | . . . . Hackware . | . . . . Protection . | . . . . Artifact . | . . . . Weapon 11 | 2 3 1 5 Energy Gun 8 | 2 2 1 3 Energy Cannon 2 | . . . 2 Ballistic Gun . | . . . . Ballistic Cannon . | . . . . Launcher 1 | . 1 . . Special Weapon . | . . . . Impact Weapon . | . . . . Slashing Weapon . | . . . . Piercing Weapon . | . . . . Special Melee Weapon . | . . . . Unidentified Prototypes . | . . . . Parts Lost 2 | . 1 . 1 Power . | . . . . Propulsion 1 | . . . 1 Utility . | . . . . Weapon 1 | . 1 . . Highest Loss Streak 1 | . 1 . 1 To Critical Strikes . | . . . . Average Slot Usage (%) 87 | . 99 100 74 Engine 4 | . 14 1 . Core 8 | . . 12 11 Leg 24 | . 28 28 20 Device 3 | . . . 7 Storage 20 | . 27 28 12 Energy Gun 20 | . 27 28 12 Energy Cannon 3 | . . . 7 Peak Build Rating 18 | 6 7 10 18 Average Rating 11 | 4 6 9 14 On Entrance 5 | . 6 7 10 Naked Turns . | . . . . Heaviest Build 22 | 14 18 18 22 Greatest Support 20 | 20 20 20 20 Greatest Overweight (x) 1 | . . . 1 Average Overweight (x) . | . . . . Largest Inventory Capacity 8 | 8 8 8 8 Average Capacity 7 | 7 8 8 8 Most Carried 8 | 5 7 8 8 Average Carried 5 | 2 4 5 6 Final Capacity 8 | 8 8 8 8 Final Carried 6 | 2 6 5 5 Class Distribution -------------------- 68% | Mutant 31% | Scavenger-Mutant Dominant Class ---------------- Mutant | -10/Materials Mutant | -10/Mines Scavenger-Mutant | -9/Materials Resources | -11 -10 -10 -9 ----------- Run | Yrd Mat Min Mat Matter Collected 485 | 204 87 64 130 Remotely . | . . . . Salvage Created 691 | . 125 170 396 Parts 61 | . 15 8 38 Haulers Intercepted . | . . . . Recyclers Shooed . | . . . . Parts Field Recycled . | . . . . Retrieved Matter . | . . . . Parts Self-Destructed . | . . . . Prevented . | . . . . Kills | -11 -10 -10 -9 ------- Run | Yrd Mat Min Mat Combat Hostiles Destroyed 27 | . 5 4 18 Guns 19 | . 3 2 14 Cannons 4 | . . . 4 AOE 3 | . 2 1 . Classes Destroyed 5 | . 3 . 2 Worker 2 | . 1 . 1 Watcher 2 | . . . 2 Swarmer 19 | . 3 . 16 Grunt 6 | . 2 4 . Sentry 2 | . . . 2 Best Kill Streak 5 | . 4 2 5 Combat Bots Only 5 | . 3 2 5 Max Kills in Single Turn 2 | . 2 2 1 Gunslinging . | . . . . Exploded 1 | . 1 1 . Melee . | . . . . Uniques/NPCs Destroyed . | . . . . Combat | -11 -10 -10 -9 -------- Run | Yrd Mat Min Mat Hostile Shots Fired 115 | . 22 26 67 Missed 35 | . 9 9 17 Damage Taken 928 | . 252 255 421 Core 283 | . 119 47 117 Absorbed by Shields . | . . . . Core Remaining (%) 66 | 100 . 33 . Volleys Fired 56 | . 11 14 31 Largest 2 | . 2 2 2 Hottest 128 | . 90 115 128 Shots Fired 107 | . 22 26 59 Gun 90 | . 20 26 44 Cannon 15 | . . . 15 Launcher 2 | . 2 . . Special . | . . . . Kinetic . | . . . . Thermal 48 | . 11 21 16 Explosive 2 | . 2 . . Electromagnetic 57 | . 9 5 43 Robot Hit Streak 10 | . 3 10 5 Robot Miss Streak 6 | . 1 1 6 Penetration Max . | . . . . Secondary Targets 1 | . 1 . . Max Gunslinging Chain 1 | . 1 . . Shots Hit Robots 74 | . 13 20 41 Core Hits 50 | . 11 6 33 Critical Kills . | . . . . Critical Parts Destroyed . | . . . . Critical Strikes 2 | . . 2 . Burn 2 | . . 2 . Melee Attacks . | . . . . Impact . | . . . . Slashing . | . . . . Piercing . | . . . . Sneak Attacks . | . . . . Combat Hostiles . | . . . . Follow-up Attacks . | . . . . Damage Inflicted 1197 | . 254 331 612 Guns 839 | . 154 271 414 Cannons 198 | . . . 198 Explosions 160 | . 100 60 . Melee . | . . . . Ramming . | . . . . Kinetic . | . . . . Thermal 490 | . 62 282 146 Explosive 100 | . 100 . . Electromagnetic 607 | . 92 49 466 Impact . | . . . . Slashing . | . . . . Piercing . | . . . . Highest Corruption . | . . . . Average Corruption . | . . . . Corruption Purged . | . . . . Corruption Blocked . | . . . . Overload Shots . | . . . . Overflow Damage 28 | . 28 . . Projectiles . | . . . . Explosions 28 | . 28 . . Melee . | . . . . Knockbacks . | . . . . Impact . | . . . . Kinetic . | . . . . Secondary . | . . . . Self-Inflicted Damage 58 | . 18 40 . Shots 2 | . 1 1 . Rammed . | . . . . Targets Rammed . | . . . . Kicked . | . . . . Crushed . | . . . . Highest Temperature 419 | . 315 419 315 Average Temperature 125 | . 129 154 88 Received Heat Transfer 216 | . 87 120 9 Effects 4 | . . 3 1 Shutdowns 1 | . . 1 . Interference 2 | . . 1 1 Damage (minor) 1 | . . 1 . Siege Activations . | . . . . Robots Corrupted . | . . . . Combat Hostiles . | . . . . Parts Fried 4 | . . 1 3 Impact Corruptions . | . . . . Robots Melted 1 | . . 1 . Combat Hostiles 1 | . . 1 . Parts Melted 2 | . . 2 . Heat Transferred 1205 | . 185 840 180 Parts Sabotaged . | . . . . Parts Stolen . | . . . . Parts Stripped . | . . . . Power Chain Reactions 1 | . . 1 . Alert | -11 -10 -10 -9 ------- Run | Yrd Mat Min Mat Peak Influence 456 | . 131 173 456 Initial 66 | . . 51 66 Average 126 | . 57 120 182 Maximum Alert Level 2 | . . . 2 Low Security (%) 87 | 100 100 100 71 Level 1 11 | . . . 26 Level 2 . | . . . 1 Level 3 . | . . . . Level 4 . | . . . . Level 5 . | . . . . High Security . | . . . . Max Security . | . . . . Squads Dispatched 2 | . 1 . 1 Investigation 2 | . 1 . 1 Extermination . | . . . . Reinforcement . | . . . . Assault . | . . . . Garrison . | . . . . Intercept . | . . . . Searches Triggered . | . . . . Construction Impeded . | . . . . Haulers Reinforced . | . . . . Active Scanning Responses . | . . . . Cargo Convoy Interrupts . | . . . . Stealth | -11 -10 -10 -9 --------- Run | Yrd Mat Min Mat Distress Signals 1 | . . . 1 Communications Jammed . | . . . . Distress Signals . | . . . . Times Spotted 31 | . 5 4 22 Peak Tracking Total 4 | . 3 2 4 Tactical Retreats 2 | . . . 2 Traps | -11 -10 -10 -9 ------- Run | Yrd Mat Min Mat Traps Triggered 1 | . . . 1 Indirectly . | . . . . Trap Hack Attempts . | . . . . Triggered . | . . . . Disarmed . | . . . . Reprogrammed . | . . . . Reused . | . . . . Traps Extracted . | . . . . Installed . | . . . . Triggered . | . . . . Machines | -11 -10 -10 -9 ---------- Run | Yrd Mat Min Mat Machines Disabled 2 | . . . 2 Max in Single Turn 1 | . . . 1 Machines Repaired . | . . . . Machines Dismantled . | . . . . Machines Sabotaged . | . . . . Overloaded Fab Kills . | . . . . Hacking | -11 -10 -10 -9 --------- Run | Yrd Mat Min Mat Machines Accessed 7 | . 3 . 4 Terminals 5 | . 3 . 2 Fabricators . | . . . . Repair Stations . | . . . . Recycling Units 1 | . . . 1 Scanalyzers 1 | . . . 1 Garrison Access . | . . . . Total Hacks 14 | . 7 . 7 Successful 6 | . 3 . 3 Failed 8 | . 4 . 4 Catastrophic 1 | . . . 1 Database Lockouts . | . . . . Manual . | . . . . Terminals 11 | . 7 . 4 Fabricators . | . . . . Repair Stations . | . . . . Recycling Units 2 | . . . 2 Scanalyzers 1 | . . . 1 Garrison Access . | . . . . Terminal Hacks 5 | . 3 . 2 Robot Analysis 2 | . 2 . . Branch Access Points 1 | . . . 1 Emergency Access Points 2 | . 1 . 1 Fabricator Hacks . | . . . . Repair Station Hacks . | . . . . Recycling Unit Hacks . | . . . . Scanalyzer 1 | . . . 1 Insert Component 1 | . . . 1 Garrison Access Hacks . | . . . . Unauthorized Hacks . | . . . . Terminals . | . . . . Fabricators . | . . . . Repair Stations . | . . . . Recycling Units . | . . . . Scanalyzers . | . . . . Garrison Access . | . . . . Data Cores Recovered . | . . . . Used . | . . . . Hacking Detections 6 | . 3 . 3 Full Trace Events 1 | . 1 . . Feedback Events . | . . . . Feedback Blocked . | . . . . Robot Schematics Acquired . | . . . . Robots Built . | . . . . Authchips . | . . . . Time . | . . . . Total Robot Build Rating . | . . . . Part Schematics Acquired . | . . . . Parts Built . | . . . . Authchips . | . . . . Time . | . . . . Total Part Build Rating . | . . . . Parts Repaired . | . . . . Time . | . . . . Parts Recycled . | . . . . Recycled Matter . | . . . . Retrieved Matter . | . . . . Retrieved Components . | . . . . Parts Scanalyzed . | . . . . Part Schematics Acquired . | . . . . Parts Damaged . | . . . . Bothacking | -11 -10 -10 -9 ------------ Run | Yrd Mat Min Mat Used RIF Installer . | . . . . Robots Hacked . | . . . . Non-combat . | . . . . Combat . | . . . . Robot Hacks Applied . | . . . . Relay Couplers Released . | . . . . Fabnet Peak Effective % . | . . . . Robots Rewired . | . . . . Allies Hacked . | . . . . Hacks Repelled . | . . . . Allies | -11 -10 -10 -9 -------- Run | Yrd Mat Min Mat Total Allies . | . . . . Largest Group . | . . . . Highest-Rated Group . | . . . . Highest-Rated Ally . | . . . . Total Orders . | . . . . Ally Attacks . | . . . . Total Damage . | . . . . Kills . | . . . . Allies Corrupted . | . . . . Allies Melted . | . . . . Intel | -11 -10 -10 -9 ------- Run | Yrd Mat Min Mat Robot Analysis Total 2 | . 2 . . Derelict Logs Recovered 1 | . . 1 . Drone Launches . | . . . . Drone Recoveries . | . . . . Exploration | -11 -10 -10 -9 ------------- Run | Yrd Mat Min Mat Turns Passed 1366 | 61 365 322 618 Spaces Moved 859 | 42 264 203 350 Core 15 | 15 . . . Treads . | . . . . Legs 830 | 27 264 203 336 Wheels . | . . . . Hover . | . . . . Flight 14 | . . . 14 Fastest Speed 50 | 50 120 120 111 Average Speed 119 | 95 120 120 120 Slowest Speed 190 | 120 120 120 190 Overloaded Moves . | . . . . Propulsion Burnouts . | . . . . Robots Hopped . | . . . . Cave-ins Triggered . | . . . . Exploration Rate (%) 24 | 5 34 34 23 Regions Visited 3 Branch Regions 1 Pre-discovered Areas . | . . . . Known Exits Taken . | . . . . Unknown Exits Taken 3 | 1 1 1 . Scrap Searched 1 | . . 1 . Spaces Dug 7 | . 7 . . Terrain Destroyed 16 | . 9 7 . Melee . | . . . . Projectile . | . . . . AOE 16 | . 9 7 . Terrain Rammed . | . . . . Walls Destroyed . | . . . . Machines Disabled . | . . . . Actions | -11 -10 -10 -9 --------- Run | Yrd Mat Min Mat Total 1109 | 63 291 259 496 Wait 110 | 8 5 28 69 Move 856 | 41 263 202 350 Hop . | . . . . Pick Up 31 | 8 6 3 14 Fast Attach . | . . . . Attach 27 | 6 4 4 13 Detach 11 | . 2 4 5 Swap . | . . . . Drop 18 | . . 4 14 Fire 56 | . 11 14 31 Melee . | . . . . Ram . | . . . . Kick . | . . . . Crush . | . . . . Escape Stasis . | . . . . Rewire . | . . . . Trap . | . . . . Miscellaneous . | . . . . Route ------- -11/Scrapyard -10/Materials -10/Mines (discovered 2 exits: *Mat x2) -9/Materials (discovered 1 exit: Min) History --------- Turn | Location | Event 10 | -11/Scrapyard | Discovered new exit (range 15) 62 | -11/Scrapyard | Entered Materials 306 | -10/Materials | Discovered new exit (range 14) 312 | -10/Materials | Build established: Mutant 427 | -10/Materials | Entered Mines 449 | -10/Mines | Core integrity fell below 50% 495 | -10/Mines | Learned Materials garrison access intel 520 | -10/Mines | Discovered new exit (range 6) 626 | -10/Mines | Discovered new exit (range 7) 749 | -10/Mines | Entered Materials 749 | -9/Materials | Evolved 2 slots: Propulsion x2 843 | -9/Materials | Identified exit to Mines 1257 | -9/Materials | Build established: Scavenger-Mutant 1367 | -9/Materials | Self-destructed Last Messages --------------- S-10 Pest destroyed. U-05 Engineer repairs door. Y-45 Defender destroyed. K-01 Serf collects debris. R-06 Scavenger collects Flight Unit. K-01 Serf collects debris. Connecting with Scanalyzer... Triggered Alarm Trap. An alarm sounds. ALERT: Alarm triggered, dispatching investigation squad. C-30 ARC bursts open, deploying its payload. S-10 Pest unfolds itself. Aluminum Leg destroyed. Flight Unit fried. S-10 Pest destroyed. Door malfunctions. S-10 Pest destroyed. U-05 Engineer repairs door. U-05 Engineer lays Concrete. Map ----- +----------------------------------------------------+ | ?????????????????????????????????????????????# ? | | ????????????????????????????????????????????# | | ????????????????????????????????????????????# = | | ????????????????????????????????????????????# | | ????????????????????????????????????????????? | | ????????????????????????????????????????????? | | ?????????????????????????????????????????##### # | | ?????????????????????????????????????????? # | | ??????????????????????????????????????????? # | | ???????????????????????????????????????????? # | | ?????????????????????????????????????????????# # | | ?????????????????????????????????????????????# # | | ?????????????????????????????????????????????# # | | ?????????????????????????????????????????????# | | ????????>?????????????????????#??????????????# | | ????????????????????????????? # ?????????##### | | ???????????????????????????? +??????????#!! # | | ???????????????????????????? #??????????#!! # | | ???????????????????#######? #??????????#** # | | ??????????????###### ## #??????????#* + | | ??????????????? ???????????#] # | | ???????????????? ????????????#] [ # | | ?????????????????? ??????????????##### # | | ???????#########???# % #???????????????????# # | | ???????# #????# ##########????######## # | | ???????# "" ###### #@ #????# ! # # | | ???????+ T"=#! %+=* "" #????# + # | | ???????# "%+[ [#% """ #????# # # | | ???????# # = # S" #????# # # | | ???????# #+#+###### #????#[ "T" # # | | ???????# """ # ## """ #????# # # | | ???????# " " %# "" ## """ #????######## # | | ???????# "" # """## """ #???????????# # | | ??# ## = # S"## #???????????# + | | / %/"! %*%/ ###########???????????# # | | ??# #### ####* #?????????????????????# # | | ??# ????##???# [ #?????????????????????# # | | ??# ??? ##############+###???????????????????# # | | ??#??? #???????????????????# # | | ?????? #######?????????????# # | | ??????? " """ T # #?########????# # | | ???????????"" """ # #?#[ !!!!#????# # | | ???????????"" """ " # #?#[ !!!!#????# # | | ??????????""" "%"# #?# #????# # | | ??????????"" " # #?# = ###### *# | | ??????????""" =#%= ### [ # | | ???????????"" %/= + = =# | | ???????????"" *#! ######## """ * # | | ?????????? " # #??????# ! """= # | | ????????? # #?###### * =""" # | +----------------------------------------------------+ Best States ------------- Heat Dissipation 42 Energy Generation 14 Energy Capacity 450 Matter Stores 300 Matter Capacity 300 Sight Range 16 Terrain Scan Density 10 Evasion (%) 55 Item Schematics ----------------- None Robot Schematics ------------------ None Fabricated ------------ Nothing Alien Tech Used ----------------- None Achievements -------------- It's Just You Challenges ------------ None Game ------ Seed RiotBombardmentMachine Manual? 0 Play Time 00:16:53 Cumulative 4.1 hours Start 2025.01.10 @ 23:37:07 End 2025.01.10 @ 23:52:41 Sessions 1 Manual Loads 0 Difficulty Rogue Special Mode None Game No. 9 Rogue 9 Adventurer 0 Explorer 0 Win Type - Total 0 Types 0/0/0/0/0/0/0/0/0 Lore% 2 Gallery% 6 Achievement% 5 Wizard Run 0 Options --------- Layout 1 ASCII 0 Keyboard 1 Movement Numpad Keybinds 0 Fullscreen 2 Font 24/Terminus Map View 50x35 Zoom Use 0% Tactical HUD 0 Map Filters NONE Filters NONE Steam 1 RUN: 2dcc2aa0-4d7d-43ea-913d-e58fcdf50e54